bitfinex-derivatives/quotes_ETHF0:USTF0_20250824
["timestamp","ask_amount","ask_price","bid_price","bid_amount"]
[1756032412005,1.3427,4757.4,4757.3,0.8001]
[1756032412207,1.3427,4757.4,4757.3,0.6401]
[1756032412615,1.3427,4757.4,4757.3,0.9822]
[1756032413115,1.3427,4757.4,4757.3,1.1422]
[1756032414710,1.3427,4757.4,4757.3,0.4205]
[1756032415014,1.3427,4756.9,4756.8,1.30314]
[1756032415721,1.3427,4756.9,4756.8,1.76564]
[1756032416615,1.3427,4756.9,4756.8,1.53934]
[1756032418313,1.3427,4756.9,4756.8,1.30314]
[1756032418824,1.3427,4756.9,4756.8,1.14224]
[1756032419224,1.3427,4756.9,4756.8,1.53934]
[1756032421024,1.3427,4756.9,4756.8,1.76564]
[1756032421427,1.3427,4756.9,4756.8,1.9402738]
[1756032421726,1.3427,4756.9,4756.8,1.76564]
[1756032424023,1.05126,4757.3,4756.5,0.88307]
[1756032424328,1.3427,4756.6,4756.5,0.80017]
[1756032424526,1.3427,4756.6,4756.5,0.2196]
[1756032425328,0.42057,4756.5,4756.4,0.3421]
[1756032425627,1.76327,4756.5,4756.3,0.42059]
[1756032425828,1.3427,4756.4,4756.3,0.42059]
[1756032426232,1.05124,4757.4,4756.1,0.5783]
[1756032426233,1.3427,4756.2,4756.1,0.3796]
[1756032426730,1.3427,4756.2,4756.1,1.3487]
[1756032429735,1.3427,4756.2,4756.1,0.8959]
[1756032430233,1.3427,4756.2,4756.1,0.7353]
[1756032430836,1.3644,4755.8,4755.7,0.42064]
[1756032431234,1.3644,4755.8,4755.7,1.15234]
[1756032431430,1.3644,4755.8,4755.7,1.53664]
[1756032431637,1.3644,4755.8,4755.7,1.71109742]
[1756032432339,1.3644,4755.8,4755.7,0.17445742]
[1756032432838,1.3678,4755.8,4755.7,0.17445742]
[1756032433040,0.53,4754.8,4754.5,0.42075]
[1756032433337,1.05161,4755.7,4754.5,0.7317]
[1756032433338,1.3644,4754.6,4754.5,0.7317]
[1756032433840,0.7748,4754.6,4754.5,1.3451]
[1756032434138,1.78511,4755.0,4754.9,1.3451]
[1756032435133,0.0039,4755.5,4754.4,0.42075]
[1756032435339,1.3644,4754.8,4754.7,1.18103]
[1756032435639,1.3644,4754.8,4754.7,1.76583]
[1756032436439,1.3644,4754.8,4754.7,0.7317]
[1756032436954,1.3644,4754.8,4754.7,0.9554]
[1756032437250,1.3644,4754.8,4754.7,1.116]
[1756032437749,1.3644,4754.8,4754.7,1.3451]
[1756032438548,0.7748,4755.1,4755.0,0.9612]
[1756032438850,1.3644,4755.1,4755.0,1.3451]
[1756032440548,1.3644,4755.1,4755.0,1.116]
[1756032440749,0.1515,4754.5,4754.4,0.537]
[1756032440956,0.7748,4754.5,4754.4,1.41016]
[1756032441342,0.7748,4754.5,4754.4,1.76586]
[1756032441849,1.3644,4754.9,4754.8,1.54212]
[1756032442052,1.3644,4754.9,4754.8,1.76582]
[1756032442244,0.7748,4754.9,4754.8,1.76582]
[1756032443350,1.04397,4755.4,4754.6,1.05184]
[1756032443654,1.78507,4755.4,4755.3,1.3451]
[1756032444750,1.3644,4755.0,4754.9,1.3451]
[1756032450354,1.0067,4755.0,4754.9,1.3451]
[1756032450853,0.7748,4755.0,4754.9,1.3451]
[1756032451054,0.7411,4755.3,4755.2,0.58129]
[1756032451259,1.0067,4755.3,4755.2,1.76579]
[1756032451452,0.7748,4755.3,4755.2,1.76579]
[1756032451658,1.3644,4755.6,4755.5,0.95726]
[1756032451858,1.3644,4755.6,4755.5,1.76576]
[1756032454062,1.78506,4755.6,4755.3,0.42067]
[1756032454260,1.3644,4755.4,4755.3,0.77637]
[1756032454556,1.3644,4755.4,4755.3,1.53667]
[1756032455864,1.3644,4755.4,4755.3,1.76577]
[1756032457860,1.1186,4756.1,4756.0,1.27112]
[1756032458066,1.1186,4756.1,4756.0,1.3081]
[1756032458464,1.3362,4756.1,4756.0,1.0707]
[1756032459362,1.3362,4756.1,4756.0,0.8505]
[1756032460269,1.3362,4756.1,4756.0,0.7036]
[1756032463067,1.3362,4756.1,4756.0,1.3081]
[1756032468974,0.9764,4756.1,4756.0,1.48266588]
[1756032469366,0.538,4756.8,4756.7,1.27105]
[1756032469564,1.3362,4756.8,4756.7,1.72865]
[1756032470664,0.3685,4757.1,4757.0,0.94223]
[1756032470864,1.3362,4757.1,4757.0,1.72863]
[1756032473777,1.3362,4757.1,4757.0,1.3081]
[1756032473978,1.75672,4757.1,4757.0,1.3081]
[1756032477677,0.7982,4756.7,4756.3,0.4576]
[1756032477980,1.3362,4756.2,4756.1,0.7036]
[1756032478575,1.3362,4756.2,4756.1,0.2184]
[1756032479077,1.3362,4756.2,4756.1,0.3748]
[1756032479282,1.3362,4756.2,4756.1,0.7036]
[1756032480575,0.2339,4755.9,4755.8,0.7674]
[1756032480780,0.2339,4755.9,4755.8,1.0707]
[1756032480781,1.75682,4755.9,4755.8,1.0707]
[1756032481280,1.3362,4755.9,4755.8,1.3081]
[1756032481677,1.3362,4755.9,4755.8,1.48247052]
[1756032481984,0.2208,4756.1,4755.8,0.17437052]
[1756032482188,0.4384,4756.1,4756.0,1.3081]
[1756032482388,1.3362,4756.1,4756.0,0.7036]
[1756032482580,1.3362,4756.1,4756.0,0.2184]
[1756032482980,1.3362,4755.8,4755.7,0.96784]
[1756032483381,1.3362,4755.8,4755.7,1.39994]
[1756032483687,1.3362,4755.8,4755.7,1.72874]
[1756032484382,1.3362,4755.8,4755.7,1.0707]
[1756032484690,0.538,4755.2,4755.1,0.7036]
[1756032484984,1.3362,4755.2,4755.1,1.24513151]
[1756032485590,1.3362,4755.2,4755.1,0.17443151]
[1756032485889,1.3362,4755.2,4755.1,0.7036]
[1756032486085,1.3362,4755.2,4755.1,1.0707]
[1756032486285,1.3362,4755.2,4755.1,1.3081]
[1756032489086,1.3362,4755.2,4755.1,0.8505]
[1756032489280,0.5256,4754.9,4754.8,1.39202]
[1756032489480,1.3235,4754.9,4754.8,1.93873569]
[1756032490593,1.3235,4754.9,4754.8,0.41431569]
[1756032490979,0.42075,4754.6,4754.4,0.42076]
[1756032491185,1.74426,4754.4,4754.3,0.2399]
[1756032491384,1.3235,4754.0,4753.7,0.42081]
[1756032491587,1.3235,4753.9,4753.8,0.17438421]
[1756032492290,1.74434,4753.5,4753.2,0.77436]
[1756032492494,1.74435,4753.4,4753.3,0.17429008]
[1756032492686,1.3235,4753.4,4753.3,0.17429008]
[1756032493086,1.3235,4753.4,4753.3,0.2399]
[1756032493389,0.5256,4753.1,4753.0,1.02718]
[1756032493593,1.3235,4753.1,4753.0,1.55483175]
[1756032493790,1.3235,4753.1,4753.0,1.33463175]
[1756032494182,0.0063,4754.6,4753.0,1.3436]
[1756032494382,0.9946,4753.8,4753.7,1.76442]
[1756032494791,1.3235,4753.8,4753.7,1.76442]
[1756032495192,0.42077,4754.3,4753.1,0.021]
[1756032495193,1.3235,4754.3,4754.2,1.76437]
[1756032495588,1.3235,4754.3,4754.2,1.1119]
[1756032495795,1.3235,4754.3,4754.2,0.8917]
[1756032496394,0.9946,4754.0,4753.9,0.4208]
[1756032496589,1.3235,4754.0,4753.9,0.4208]
[1756032496781,1.3235,4754.0,4753.5,19.6502]
[1756032496782,1.7443,4754.0,4753.5,0.5737]
[1756032497090,1.3235,4753.8,4753.7,0.66071]
[1756032497591,1.3235,4753.8,4753.7,0.2399]
[1756032498591,1.3235,4753.8,4753.7,0.7396]
[1756032499000,1.3235,4753.8,4753.7,0.8917]
[1756032499495,1.3235,4753.8,4753.7,0.7396]
[1756032499789,1.3235,4753.8,4753.7,0.3861]
[1756032500486,1.3235,4753.7,4753.6,0.80692]
[1756032500687,1.3235,4753.7,4753.6,1.16042]
[1756032500896,1.3235,4753.7,4753.6,1.53272]
[1756032501098,1.3235,4753.7,4753.6,1.16042]
[1756032501298,1.3235,4753.7,4753.6,0.80692]
[1756032501493,1.3235,4753.7,4753.6,0.2399]
[1756032501696,1.0955,4753.4,4753.3,1.16045]
[1756032501995,1.3235,4753.4,4753.3,1.16045]
[1756032502197,1.3235,4753.4,4753.3,1.31255]
[1756032502596,1.3235,4753.4,4752.9,0.2317]
[1756032502597,0.5256,4753.0,4752.9,0.7699]
[1756032502796,1.3235,4753.0,4752.9,1.54429]
[1756032502994,1.3235,4753.0,4752.9,1.76449]
[1756032502995,0.9946,4753.0,4752.9,1.76449]
[1756032503394,1.3235,4753.0,4752.9,1.31259]
[1756032503594,1.3235,4753.0,4752.9,1.76449]
[1756032504298,1.3235,4753.0,4752.9,1.53279]
[1756032504600,1.3235,4753.0,4752.9,1.31259]
[1756032505100,1.3235,4753.0,4752.9,1.16049]
[1756032505699,1.3235,4753.0,4752.9,0.42089]
[1756032506593,0.4209,4752.8,4752.5,0.77442]
[1756032506793,1.3235,4752.6,4752.5,1.31263]
[1756032506998,1.3235,4752.6,4752.5,1.76453]
[1756032507599,1.3235,4752.6,4752.5,1.16053]
[1756032507797,1.3235,4752.3,4752.2,0.95915]
[1756032508098,1.3235,4752.3,4752.2,1.31265]
[1756032508399,1.3235,4752.3,4752.2,1.53285]
[1756032509401,1.3235,4752.3,4752.2,1.76455]
[1756032515308,1.3235,4752.3,4752.2,1.53285]
[1756032515607,1.3235,4752.3,4752.2,1.31265]
[1756032516195,1.3235,4752.3,4752.2,1.16055]
[1756032517202,1.3235,4752.3,4751.9,0.8]
[1756032517404,0.0119,4752.5,4752.0,0.42097]
[1756032517405,1.3309,4752.1,4752.0,0.42097]
[1756032518003,0.5301,4752.1,4751.6,19.424]
[1756032518205,1.3309,4751.8,4751.7,0.54122299]
[1756032518405,0.5301,4751.8,4751.6,0.421]
[1756032518710,1.3309,4751.7,4751.6,0.421]
[1756032519408,1.3309,4751.7,4751.6,1.7526]
[1756032519904,0.4574,4751.7,4751.6,1.7526]
[1756032520111,1.3309,4752.1,4752.0,1.75257]
[1756032520310,1.3309,4752.1,4752.0,0.78817]
[1756032520814,1.3309,4752.1,4752.0,1.52987]
[1756032521003,1.3309,4752.1,4752.0,1.75257]
[1756032521204,1.3309,4752.1,4752.0,1.52987]
[1756032521807,1.3309,4752.1,4752.0,1.75257]
[1756032522109,0.95107,4752.1,4751.8,0.42098]
[1756032522304,1.3309,4751.9,4751.8,21.17658]
[1756032527720,1.3309,4751.9,4751.8,21.17458]
[1756032528420,1.3309,4751.9,4751.8,20.95188]
[1756032528624,1.3309,4751.9,4751.8,1.13628]
[1756032528921,1.3309,4751.9,4751.8,0.2209]
[1756032530120,0.42099,4751.8,4751.7,19.421]
[1756032530422,1.75189,4751.8,4751.7,19.421]
[1756032530918,1.75189,4751.8,4751.7,19.7691]
[1756032531126,1.75189,4751.8,4751.7,19.94350718]
[1756032531422,0.95111,4751.6,4751.5,0.7153]
[1756032531622,1.18701,4751.6,4751.5,0.7153]
[1756032532020,1.3309,4750.9,4750.8,1.3316]
[1756032532222,0.5301,4750.5,4750.4,20.94901]
[1756032532524,1.3309,4750.5,4750.4,21.34615336]
[1756032533121,1.3309,4750.5,4750.4,1.3316]
[1756032533321,1.3309,4750.5,4750.4,1.1089]
[1756032533630,1.3309,4750.5,4750.4,0.7153]
[1756032533826,0.8008,4750.4,4750.2,0.76923]
[1756032534024,1.3309,4750.3,4750.2,0.64203]
[1756032534224,1.3309,4750.3,4750.2,1.13643]
[1756032534529,1.3309,4750.3,4750.2,1.1089]
[1756032534726,0.9875,4750.3,4750.2,1.3316]
[1756032535026,1.3309,4750.6,4750.5,0.7315]
[1756032535216,0.8008,4750.5,4750.3,0.42112]
[1756032535421,1.3309,4750.4,4750.3,1.53002]
[1756032535621,1.3309,4750.4,4750.3,1.75272]
[1756032536823,0.42112,4750.3,4750.0,0.2227]
[1756032537029,1.3309,4750.1,4750.0,0.8718]
[1756032537228,1.3309,4750.1,4750.0,20.1323]
[1756032537732,1.3309,4750.1,4750.0,20.2888]
[1756032537931,1.3309,4750.1,4750.0,20.5259]
[1756032538426,1.3309,4749.9,4749.8,0.7153]
[1756032538726,1.3309,4749.9,4749.8,1.3316]
[1756032539029,1.75206,4749.9,4749.8,1.3316]
[1756032539428,1.75206,4749.9,4749.8,0.8718]
[1756032539627,1.06997,4750.5,4749.5,0.3672]
[1756032539628,1.75208,4749.6,4749.5,0.3672]
[1756032539830,1.75211,4749.4,4749.3,0.3672]
[1756032540331,0.7516,4748.9,4748.8,1.40475]
[1756032540532,1.3309,4748.9,4748.8,1.40475]
[1756032540828,1.3309,4748.9,4748.8,1.75285]
[1756032541430,1.3309,4748.9,4748.8,0.76935]
[1756032541626,1.3309,4748.9,4748.8,0.3481]
[1756032541831,1.3309,4748.9,4748.8,0.7153]
[1756032542028,1.3309,4748.9,4748.8,1.1089]
[1756032542226,0.9875,4748.9,4748.8,1.3316]
[1756032542742,1.3309,4748.9,4748.8,1.3316]
[1756032543037,0.3834,4748.9,4748.8,1.3316]
[1756032543226,1.1758,4748.9,4748.8,1.3316]
[1756032543535,1.3309,4748.9,4748.8,1.3316]
[1756032544029,0.4574,4748.9,4748.8,1.3316]
[1756032544224,1.3309,4749.0,4748.9,1.0288]
[1756032544534,1.3309,4749.0,4748.9,1.3316]
[1756032545722,0.3434,4750.0,4749.4,1.3316]
[1756032545924,0.8008,4750.0,4749.8,0.42116]
[1756032546226,1.3309,4750.0,4749.9,1.3316]
[1756032546433,1.3309,4750.0,4749.9,0.7153]
[1756032546937,1.3309,4750.0,4749.9,0.8718]
[1756032547134,1.3309,4750.0,4749.9,0.7153]
[1756032547329,1.0084,4749.7,4749.6,0.6036]
[1756032547636,1.77367,4749.7,4749.6,0.9362]
[1756032547835,1.77367,4749.7,4749.6,0.7159]
[1756032548228,0.3139,4749.9,4749.8,0.72476]
[1756032548429,0.7693,4749.9,4749.8,1.73356]
[1756032548931,0.1609,4750.1,4750.0,0.57214]
[1756032549134,0.1609,4750.1,4750.0,1.73354]
[1756032549333,1.0084,4750.1,4750.0,1.3124]
[1756032549534,1.3525,4750.1,4750.0,1.3124]
[1756032552236,1.3525,4750.1,4750.0,0.8685]
[1756032552436,1.3525,4750.1,4750.0,0.3833]
[1756032553730,0.2391,4749.9,4749.8,0.3326]
[1756032553931,0.553,4749.1,4749.0,0.9395]
[1756032554129,1.3525,4749.1,4749.0,0.7159]
[1756032554334,1.77375,4748.8,4748.7,0.151]
[1756032554531,0.97427,4748.6,4748.5,0.3833]
[1756032554732,1.77377,4748.6,4748.5,0.7159]
[1756032555737,1.3525,4748.6,4748.5,1.3124]
[1756032556725,0.2256,4748.3,4748.0,0.42132]
[1756032556930,1.3525,4748.1,4748.0,1.51012]
[1756032557130,1.3525,4748.1,4748.0,1.73372]
[1756032557326,1.3525,4748.1,4748.0,1.51012]
[1756032557732,1.3525,4748.1,4748.0,1.0888]
[1756032557937,0.553,4747.7,4747.6,0.7562]
[1756032558138,1.3525,4747.7,4747.6,1.3124]
[1756032558338,1.0084,4747.7,4747.6,1.3124]
[1756032559134,1.3525,4747.7,4747.6,1.3124]
[1756032559333,1.3525,4747.7,4747.6,1.0888]
[1756032560034,1.3525,4747.7,4747.6,1.3124]
[1756032560828,0.8971,4747.3,4747.2,0.7562]
[1756032561138,1.3525,4747.3,4747.2,0.9798]
[1756032561335,1.3525,4747.3,4747.2,1.3124]
[1756032561533,1.3525,4747.3,4747.2,1.0888]
[1756032561937,1.3525,4747.3,4747.2,1.3124]
[1756032563439,0.3139,4747.3,4747.2,1.3124]
[1756032563739,0.4554,4747.6,4747.5,1.3124]
[1756032563740,1.3525,4747.6,4747.5,1.3124]
[1756032565127,1.3525,4747.6,4747.5,0.8685]
[1756032565332,1.05324,4748.4,4747.2,1.13729]
[1756032565333,1.3525,4747.3,4747.2,1.13729]
[1756032565533,1.3525,4747.3,4747.0,0.42141]
[1756032565734,0.553,4747.3,4747.1,0.4214]
[1756032566037,1.3525,4747.2,4747.1,0.8047]
[1756032566239,1.3525,4747.2,4747.1,1.5102]
[1756032567339,1.3525,4747.2,4747.1,1.7338]
[1756032570346,1.0084,4747.2,4747.1,1.7338]
[1756032571447,1.3525,4747.2,4747.1,1.7338]
[1756032573547,1.3525,4747.2,4747.1,0.8685]
[1756032573760,1.3525,4747.2,4747.1,0.7159]
[1756032573948,0.553,4746.8,4746.7,1.51354]
[1756032574246,1.3525,4746.8,4746.7,1.73384]
[1756032574551,1.77393,4746.8,4746.7,1.3124]
[1756032574846,1.77396,4746.5,4746.4,0.5359]
[1756032575148,1.77396,4746.5,4746.4,0.3833]
[1756032576650,1.75068,4746.2,4746.1,0.7067]
[1756032577338,0.96733,4745.7,4745.6,0.987]
[1756032577536,1.75073,4745.7,4745.6,0.7463]
[1756032577744,1.75073,4745.7,4745.6,0.5196]
[1756032577948,1.75073,4745.7,4745.6,0.8534]
[1756032578144,1.05374,4746.1,4745.6,0.2206]
[1756032578336,0.5458,4745.3,4745.2,0.8534]
[1756032578542,1.3292,4745.3,4745.2,0.7067]
[1756032579148,1.3292,4745.3,4745.2,1.3208]
[1756032579346,1.3292,4745.3,4743.8,0.2267]
[1756032579347,1.3292,4744.7,4743.8,0.2267]
[1756032579646,1.3292,4744.6,4744.5,0.7067]
[1756032580549,1.3292,4744.6,4744.5,0.8534]
[1756032580751,1.3292,4744.6,4744.5,1.0801]
[1756032581951,1.3292,4744.6,4744.5,0.8534]
[1756032582253,1.3292,4744.3,4744.2,0.7067]
[1756032582547,1.174,4744.2,4744.1,0.09696152]
[1756032582746,1.3292,4744.2,4744.1,0.46986152]
[1756032582946,1.3292,4744.2,4744.1,0.80366152]
[1756032583944,1.0002,4744.2,4744.1,1.41776152]
[1756032584552,1.3292,4744.2,4744.1,1.41776152]
[1756032584748,0.1536,4744.2,4744.1,1.41776152]
[1756032584950,1.0977,4744.6,4744.5,0.94123]
[1756032585155,1.0977,4744.6,4744.5,1.74243]
[1756032585349,1.3292,4744.6,4744.5,1.74243]
[1756032586244,1.3292,4744.6,4744.5,1.3208]
[1756032587651,1.3292,4744.6,4744.5,1.0801]
[1756032588552,1.3292,4744.6,4744.5,1.3208]
[1756032589455,0.8748,4745.0,4744.9,1.3208]
[1756032590056,1.3292,4745.0,4744.9,1.0801]
[1756032590257,1.3292,4745.0,4744.9,0.8534]
[1756032590859,1.3292,4745.0,4744.9,0.3729]
[1756032591159,1.75082,4744.7,4744.2,1.22286]
[1756032591459,0.5458,4744.4,4744.3,1.12835]
[1756032591656,1.3292,4744.4,4744.3,1.74245]
[1756032592662,1.3292,4744.4,4744.3,0.8534]
[1756032592855,1.3292,4744.4,4744.1,0.09696152]
[1756032592856,1.3292,4744.2,4744.1,0.09696152]
[1756032596059,1.3292,4744.2,4744.1,0.46986152]
[1756032596271,1.0002,4744.2,4744.1,1.41776152]
[1756032596464,0.5458,4744.7,4744.6,0.5196]
[1756032596665,0.5458,4744.7,4744.6,1.0801]
[1756032596666,0.96742,4744.7,4744.6,1.0801]
[1756032596854,0.96742,4744.7,4744.6,0.8534]
[1756032597058,1.75082,4744.7,4744.6,0.8534]
[1756032597659,1.75082,4744.7,4744.6,0.7067]
[1756032598065,1.3292,4744.7,4744.6,0.7067]
[1756032598265,0.42163,4744.6,4744.3,0.2267]
[1756032598567,1.3292,4744.4,4744.3,0.9334]
[1756032599260,1.3292,4744.4,4744.3,0.7067]
[1756032600265,0.42165,4744.4,4744.1,0.09696152]
[1756032600464,1.3292,4744.2,4744.1,0.09696152]
[1756032601163,1.3292,4744.2,4744.1,0.31756152]
[1756032601368,1.3292,4744.2,4744.1,0.09696152]
[1756032601970,1.3292,4744.2,4744.1,1.17706152]
[1756032602170,1.3292,4744.2,4744.1,1.41776152]
[1756032602574,1.0002,4744.2,4744.1,1.41776152]
[1756032602772,0.8748,4744.5,4744.4,0.5196]
[1756032603074,0.8748,4744.5,4744.4,1.3208]
[1756032603369,0.3088,4744.5,4744.4,1.3208]
[1756032603568,0.608,4744.7,4744.6,1.3208]
[1756032603778,1.0002,4744.7,4744.6,1.3208]
[1756032603969,1.3292,4744.7,4744.6,0.8534]
[1756032604162,40.8,4745.6,4744.4,0.2206]
[1756032604163,0.65864,4744.5,4744.4,0.2206]
[1756032604370,0.7773,4744.2,4744.1,0.80366152]
[1756032604571,0.7773,4744.2,4744.1,1.41776152]
[1756032604879,1.3292,4744.2,4744.1,1.41776152]
[1756032605966,1.3292,4744.2,4744.1,0.09696152]
[1756032606364,1.86405989,4744.2,4744.1,0.09696152]
[1756032607366,1.88505989,4744.2,4744.1,0.09696152]
[1756032607571,5.88505989,4744.2,4743.2,0.3525]
[1756032607774,1.3501,4743.3,4743.2,0.2339]
[1756032608070,1.3501,4743.3,4743.2,0.7363]
[1756032608071,1.88495989,4743.3,4743.2,0.7363]
[1756032608673,0.811,4743.2,4742.8,0.5873]
[1756032608875,0.5391,4742.9,4742.8,0.9711]
[1756032609076,1.3501,4742.9,4742.8,1.1252]
[1756032609575,0.5391,4742.6,4742.5,1.0042]
[1756032609772,1.3501,4742.6,4742.5,1.1252]
[1756032610375,1.3501,4742.6,4742.5,0.8904]
[1756032611075,1.3501,4742.6,4742.5,1.1252]
[1756032611283,1.3501,4742.6,4742.5,0.8904]
[1756032612974,1.3501,4742.6,4742.5,0.7363]
[1756032613569,1.1145,4742.1,4742.0,0.2339]
[1756032613775,1.3501,4742.1,4741.8,0.42187]
[1756032613969,0.811,4742.0,4741.9,0.17733629]
[1756032614175,1.3501,4742.0,4741.9,0.17733629]
[1756032614375,0.5391,4742.0,4741.8,0.42187]
[1756032614670,1.3501,4741.9,4741.8,0.42187]
[1756032614875,1.3501,4741.9,4741.8,1.72435023]
[1756032615181,1.3501,4741.9,4741.8,1.95585023]
[1756032615374,1.3501,4741.9,4741.8,1.77857]
[1756032616076,1.3501,4741.9,4741.8,1.95579789]
[1756032616379,1.3501,4741.9,4741.8,1.77857]
[1756032617471,0.5391,4742.4,4742.3,0.80982]
[1756032617673,1.0087,4742.4,4742.3,1.77852]
[1756032618870,1.3501,4742.4,4742.3,1.77852]
[1756032621677,0.8805,4743.2,4743.1,0.42176]
[1756032621877,1.64991183,4743.2,4743.1,1.77846]
[1756032622280,0.3414,4743.5,4743.4,0.42173]
[1756032622483,1.0087,4743.5,4743.4,1.77843]
[1756032622681,0.8805,4743.9,4743.8,0.9596]
[1756032622880,1.41471449,4743.9,4743.8,1.3121]
[1756032623083,1.41471449,4743.9,4743.5,0.2348]
[1756032623285,1.3501,4743.5,4743.4,0.7363]
[1756032623485,1.3501,4743.5,4743.4,1.31213]
[1756032623681,1.3501,4743.5,4743.4,1.77843]
[1756032623887,1.0087,4743.5,4743.4,1.77843]
[1756032624182,1.3501,4743.5,4743.4,1.77843]
[1756032624376,1.3501,4743.5,4743.4,1.54693]
[1756032625282,1.3501,4743.1,4743.0,0.42176]
[1756032625485,1.3501,4742.6,4742.5,0.80561]
[1756032626682,1.3501,4742.6,4742.5,0.95971]
[1756032626884,1.3501,4742.6,4742.5,2.04054633]
[1756032627087,1.3501,4742.6,4742.5,1.57424633]
[1756032627987,1.3501,4742.6,4742.5,2.04054633]
[1756032629292,1.3501,4742.6,4742.5,2.04063556]
[1756032629590,0.7784,4743.4,4743.3,1.62434]
[1756032629789,1.3501,4743.7,4743.6,1.77841]
[1756032630092,1.0087,4743.7,4743.6,2.04053556]
[1756032630794,1.3501,4744.1,4744.0,0.95958]
[1756032630980,1.0087,4744.1,4744.0,2.04050556]
[1756032631891,0.7784,4744.5,4744.4,1.77834]
[1756032632095,1.77173,4744.5,4744.4,0.26212556]
[1756032632283,0.7747,4744.0,4743.9,0.42168]
[1756032632481,1.3501,4744.0,4743.9,1.80899185]
[1756032632691,1.3501,4744.0,4743.9,2.04049185]
[1756032632889,1.0087,4744.3,4744.2,1.77836]
[1756032633085,1.1145,4744.7,4744.6,0.57573]
[1756032633286,1.3501,4745.2,4745.1,1.77828]
[1756032633491,1.3501,4745.2,4745.1,2.04039185]
[1756032633685,1.3501,4745.2,4745.1,2.04035272]
[1756032634101,1.3501,4745.2,4745.1,1.15247272]
[1756032634288,0.811,4745.2,4745.1,0.26203862]
[1756032634599,1.1145,4743.9,4743.8,1.3567]
[1756032634796,1.3501,4743.9,4743.4,0.65652]
[1756032634989,0.8805,4743.5,4743.4,1.15802]
[1756032635186,1.1145,4743.5,4743.4,1.72607919]
[1756032635594,1.1145,4743.5,4743.4,1.95757919]
[1756032635800,0.7731,4743.9,4743.8,1.7784]
[1756032636500,1.1145,4743.9,4743.8,1.3567]
[1756032637094,0.7731,4743.9,4743.8,1.3567]
[1756032637394,0.5064,4744.3,4744.2,0.5283]
[1756032637598,0.2418,4744.9,4744.2,0.5283]
[1756032637796,1.1275,4744.4,4744.3,1.3709]
[1756032637999,1.3693,4744.4,4744.3,0.6178]
[1756032638200,1.79094,4744.4,4744.3,0.6178]
[1756032638395,1.79094,4744.4,4744.3,0.9808]
[1756032639102,1.54919,4743.9,4743.8,1.2186]
[1756032639398,1.79099,4743.9,4743.8,0.9808]
[1756032639799,0.5494,4743.5,4743.4,1.18783]
[1756032639988,1.1275,4743.5,4743.4,1.72992607]
[1756032640491,1.1275,4743.5,4743.4,1.97172607]
[1756032640795,0.5494,4744.3,4744.2,1.3709]
[1756032640996,0.42164,4744.5,4744.4,1.3709]
[1756032641200,1.54914,4744.5,4744.4,1.3709]
[1756032641498,1.79094,4744.5,4744.4,1.1331]
[1756032642588,0.7912,4744.1,4743.5,0.42172]
[1756032642794,0.5494,4743.6,4743.5,0.9768]
[1756032643094,0.7734,4743.6,4743.5,1.1291]
[1756032643289,0.3763,4743.6,4743.5,1.3709]
[1756032643696,0.1523,4744.0,4743.9,1.79259]
[1756032644293,0.42167,4744.2,4743.9,1.79259]
[1756032644489,0.42165,4744.4,4744.1,0.1523]
[1756032644695,0.7734,4744.2,4744.1,1.3709]
[1756032645389,0.3541,4744.5,4744.1,0.5283]
[1756032645595,0.224,4744.5,4744.4,1.3709]
[1756032646696,0.7734,4744.5,4744.4,1.3709]
[1756032646892,1.1275,4744.5,4744.4,1.3709]
[1756032648002,0.97101,4744.8,4744.7,0.5283]
[1756032648301,1.79096,4744.2,4744.1,0.7701]
[1756032648499,1.05406,4744.7,4743.8,0.4619]
[1756032648500,0.5494,4743.9,4743.8,0.4619]
[1756032648808,1.3693,4743.9,4743.8,0.6178]
[1756032649305,1.3693,4743.9,4743.8,0.9808]
[1756032650203,1.3693,4743.9,4743.8,0.1519]
[1756032650706,0.7734,4743.9,4743.8,1.3709]
[1756032651406,0.1523,4743.9,4743.8,1.3709]
[1756032651999,0.6165,4743.9,4743.8,1.3709]
[1756032652402,0.7734,4743.9,4743.8,1.3709]
[1756032653309,1.3693,4743.9,4743.8,0.6178]
[1756032654597,0.42181,4742.6,4742.5,1.0079]
[1756032654800,1.54931,4742.6,4742.5,1.55033331]
[1756032655201,1.79111,4742.6,4742.5,1.3709]
[1756032656301,1.79111,4742.6,4742.5,1.1331]
[1756032656904,0.42183,4742.3,4742.0,0.42185]
[1756032657104,1.3693,4742.1,4742.0,0.9808]
[1756032657302,1.3693,4742.1,4742.0,0.79727127]
[1756032657697,1.3693,4742.1,4742.0,0.57317127]
[1756032658709,0.3763,4742.1,4742.0,1.55037127]
[1756032658904,1.54929,4742.7,4742.6,0.5283]
[1756032659215,1.54929,4742.7,4742.6,1.3709]
[1756032659397,1.79109,4742.7,4742.6,1.3709]
[1756032659602,1.79109,4742.7,4742.6,1.1331]
[1756032660607,1.79109,4742.7,4742.6,0.6178]
[1756032660811,1.79109,4742.7,4742.6,0.1519]
[1756032661407,0.97122,4742.4,4742.3,0.9808]
[1756032661616,1.79112,4742.4,4742.3,0.9808]
[1756032661803,1.3693,4742.4,4742.3,1.1331]
[1756032662009,1.1275,4742.4,4742.3,1.3709]
[1756032663012,0.3763,4742.4,4742.3,1.3709]
[1756032664111,0.1523,4742.4,4742.3,1.3709]
[1756032664816,0.7734,4742.7,4742.6,1.3709]
[1756032665112,0.9999,4742.7,4742.4,0.42181]